fUSD/lending_fUSD_20251012
["ID","MTS","AMOUNT","RATE_DAILY","PERIOD"]
[390998317,1760277431348,-500.0,0.00029589,120]
[390998318,1760277431392,-1242.53,0.00029589,120]
[390998319,1760277431439,-500.0,0.00029589,120]
[390998320,1760277431482,-500.0,0.00029589,120]
[390998321,1760277431525,-3060.2,0.00029589,120]
[390998322,1760277431567,-500.0,0.00029589,120]
[390998323,1760277431609,-1242.53,0.00029589,120]
[390998324,1760277431650,-500.0,0.00029589,120]
[390998325,1760277431692,-3060.2,0.00029589,120]
[390998326,1760277431733,-1242.53,0.00029589,120]
[390998327,1760277431776,-500.0,0.00029589,120]
[390998328,1760277431819,-500.0,0.00029589,120]
[390998329,1760277431863,-500.0,0.00029589,120]
[390998330,1760277431914,-3060.2,0.00029589,120]
[390998331,1760277431961,-500.0,0.00029589,120]
[390998332,1760277432007,-1242.53,0.00029589,120]
[390998334,1760277432049,-500.0,0.00029589,120]
[390998335,1760277432093,-500.0,0.00029589,120]
[390998336,1760277432137,-500.0,0.00029589,120]
[390998337,1760277432181,-500.0,0.00029589,120]
[390998338,1760277432225,-1242.53,0.00029589,120]
[390998339,1760277432272,-3060.2,0.00029589,120]
[390998340,1760277432668,-500.0,0.00029589,120]
[390998341,1760277432714,-500.0,0.00029589,120]
[390998342,1760277432760,-1242.53,0.00029589,120]
[390998343,1760277432806,-3060.2,0.00029589,120]
[390998344,1760277432850,-500.0,0.00029589,120]
[390998345,1760277432894,-500.0,0.00029589,120]
[390998346,1760277432940,-500.0,0.00029589,120]
[390998347,1760277432986,-1242.53,0.00029589,120]
[390998348,1760277433031,-3060.2,0.00029589,120]
[390998349,1760277433074,-500.0,0.00029589,120]
[390998350,1760277433117,-503.82121436,0.00029589,120]
[390998351,1760277433162,-500.0,0.00029589,120]
[390998352,1760277433206,-1242.53,0.00029589,120]
[390998353,1760277433249,-3060.24648069,0.00029589,120]
[390998354,1760277433293,-500.0,0.00029589,120]
[390998355,1760277433337,-500.0,0.00029589,120]
[390998356,1760277433382,-1242.53,0.00029589,120]
[390998357,1760277433426,-500.0,0.00029589,120]
[390998358,1760277433471,-500.0,0.00029589,120]
[390998359,1760277433516,-500.0,0.00029589,120]
[390998360,1760277433564,-1242.53,0.00029589,120]
[390998361,1760277433610,-500.0,0.00029589,120]
[390998362,1760277433658,-500.0,0.00029589,120]
[390998363,1760277433704,-1242.53,0.00029589,120]
[390998364,1760277433749,-602.4906342,0.00029589,120]
[390998365,1760277433797,-500.0,0.00029589,120]
[390998366,1760277433843,-482.86442674,0.00029589,120]
[390998367,1760277433888,-1242.53,0.00029589,120]
[390998368,1760277433935,-500.0,0.00029589,120]
[390998369,1760277433981,-1242.53,0.00029589,120]
[390998370,1760277434028,-500.0,0.00029589,120]
[390998371,1760277434076,-1242.53,0.00029589,120]
[390998372,1760277434126,-500.0,0.00029589,120]
[390998373,1760277434173,-500.0,0.00029589,120]
[390998374,1760277434220,-1242.53,0.00029589,120]
[390998375,1760277434266,-1227.79,0.00029589,120]
[390998376,1760277434312,-500.0,0.00029589,120]
[390998377,1760277434356,-500.0,0.00029589,120]
[390998378,1760277434398,-1242.53,0.00029589,120]
[390998379,1760277434444,-1227.79,0.00029589,120]
[390998380,1760277434486,-500.0,0.00029589,120]
[390998381,1760277434529,-500.0,0.00029589,120]
[390998382,1760277434572,-1242.53,0.00029589,120]
[390998383,1760277434614,-1227.79,0.00029589,120]
[390998384,1760277434658,-573.69325935,0.00029589,120]
[390998386,1760277434698,-500.0,0.00029589,120]
[390998387,1760277434739,-1242.53,0.00029589,120]
[390998388,1760277434780,-1227.79,0.00029589,120]
[390998389,1760277434820,-500.0,0.00029589,120]
[390998390,1760277434862,-1242.60829822,0.00029589,120]
[390998391,1760277434906,-858.00434576,0.00029589,120]
[390998490,1760277458003,151.0,0.0002739,120]
[390998609,1760277487887,7234.35,0.00027397,120]
[390999377,1760277864743,557.27,0.00027397,120]
[390999390,1760277911123,2666.0,0.0002739,120]
[390999564,1760278028199,10000.0,0.00027397,120]
[390999575,1760278033441,-1880.65,0.00013919,2]
[390999576,1760278033468,-119.35,0.00013952,2]
[390999584,1760278035141,10000.0,0.00027397,120]
[390999590,1760278040052,10000.0,0.00027397,120]
[390999606,1760278046107,10000.0,0.00027397,120]
[390999612,1760278050634,5000.0,0.00027397,120]
[390999617,1760278053416,5000.0,0.00027397,120]
[390999628,1760278057807,5000.0,0.00027397,120]
[390999631,1760278058289,6932.92,0.00027397,120]
[390999637,1760278059398,5000.0,0.00027397,120]
[390999638,1760278062095,5000.0,0.00027397,120]
[390999663,1760278076572,5000.0,0.00027397,120]
[390999668,1760278079998,5000.0,0.00027397,120]
[390999677,1760278083001,2855.0,0.00027397,120]
[390999731,1760278126177,5000.0,0.00027397,120]
[390999761,1760278201430,89150.0,0.00012337,2]
[390999762,1760278201458,410850.0,0.00012337,2]
[390999785,1760278232282,-159.70095265,0.0001377,2]
[390999786,1760278232292,-742.78582062,0.0001377,2]
[390999787,1760278232304,-27.60565627,0.0001377,2]
[390999788,1760278232314,-151.0,0.00013797,2]
[390999789,1760278232324,-300.0,0.00013798,2]
[390999790,1760278232333,-33.64669101,0.00013798,2]
[390999791,1760278232403,-1166.35330899,0.00013798,2]
[390999792,1760278232413,-300.0,0.00013798,2]
[390999793,1760278232422,-500.0,0.00013799,2]
[390999794,1760278232432,-141.01909794,0.00013799,2]
[390999795,1760278232442,-9.67125733,0.00013799,2]
[390999796,1760278232452,-476.71011625,0.00013799,2]
[390999797,1760278232462,-472.85881735,0.00013799,2]
[390999798,1760278232471,-437.07353948,0.00013799,2]
[390999799,1760278232483,-62.92646052,0.00013799,2]
[390999800,1760278232493,-500.0,0.00013799,2]
[390999801,1760278232504,-420.19486485,0.00013799,2]
[390999802,1760278232515,-500.0,0.00013799,2]
[390999803,1760278232525,-249.2540799,0.00013799,2]
[390999804,1760278232535,-150.0,0.00013799,2]
[390999805,1760278232544,-627.01850867,0.0001387,2]
[390999806,1760278232556,-10424.36137253,0.0001387,2]
[390999807,1760278232566,-3225.3796483,0.0001387,2]
[390999808,1760278232576,-2000.0,0.00013885,2]
[390999809,1760278232585,-770.39147687,0.00013896,2]
[390999810,1760278232595,-159.70095261,0.00013931,2]
[390999811,1760278232605,-195.0,0.00013936,2]
[390999812,1760278232614,-248.17,0.00013952,2]
[390999813,1760278232624,-666.0,0.0001397,3]
[390999814,1760278232633,-770.39147687,0.00014021,2]
[390999815,1760278232643,-159.70095261,0.00014093,2]
[390999816,1760278232652,-250.0,0.00014098,2]
[390999817,1760278232662,-770.39147687,0.00014147,2]
[390999818,1760278232672,-159.70095261,0.00014254,2]
[390999819,1760278232682,-770.39147687,0.00014272,2]
[390999820,1760278232691,-770.39147687,0.00014398,2]
[390999821,1760278232702,-159.70095261,0.00014416,2]
[390999822,1760278232712,-236.0,0.00014566,2]
[390999823,1760278232722,-159.70095261,0.00014577,2]
[390999824,1760278232731,-106.20901337,0.00014643,2]
[390999825,1760278232771,-64.51098663,0.00014643,2]
[390999826,1760278232781,-200.0,0.00014643,2]
[390999827,1760278232790,-202.99531436,0.00014666,2]
[390999828,1760278232800,-3602.09492328,0.00014666,2]
[390999829,1760278232812,-2465.12484,0.00014666,2]
[390999830,1760278232823,-3144.12822657,0.00014666,2]
[390999831,1760278232833,-325.39392343,0.00014721,2]
[390999832,1760278232847,-296.30613985,0.00014721,2]
[390999833,1760278232859,-259.69942639,0.00014721,2]
[390999834,1760278232871,-646.21618259,0.00014721,2]
[390999835,1760278232928,-675.0,0.00014721,2]
[390999836,1760278233031,-460.51348595,0.00014721,2]
[390999837,1760278233043,-1487.52828321,0.00014721,2]
[390999838,1760278233054,-5401.51042405,0.00014721,2]
[390999839,1760278233064,-159.70095261,0.00014739,2]
[390999840,1760278233073,-736.0,0.00014756,2]
[390999841,1760278233083,-905.10359517,0.00014776,2]
[390999842,1760278233094,-1075.21999539,0.00014776,2]
[390999895,1760278238610,-770.39147687,0.00014523,2]
[390999897,1760278238620,-194.36156443,0.0001472,2]
[390999899,1760278238630,-3242.97993672,0.00014776,2]
[390999901,1760278238640,-989.64,0.000148,2]
[390999903,1760278238650,-167.97,0.000148,2]
[390999904,1760278238659,-546.32,0.000148,2]
[390999906,1760278238669,-413.34,0.000148,2]
[390999908,1760278238678,-546.32,0.000148,2]
[390999910,1760278238688,-155.58,0.000148,2]
[390999913,1760278238698,-175.92,0.000148,2]
[390999914,1760278238708,-300.0,0.000148,2]
[390999916,1760278238717,-694.77,0.000148,2]
[390999918,1760278238727,-150.0,0.000148,2]
[390999920,1760278238737,-168.12,0.000148,2]
[390999922,1760278238746,-150.72,0.000148,2]
[390999924,1760278238756,-474.45,0.000148,2]
[390999926,1760278238767,-378.89,0.000148,2]
[390999928,1760278238778,-175.92,0.000148,2]
[390999930,1760278238788,-150.0,0.000148,2]
[390999932,1760278238797,-474.45,0.000148,2]
[390999934,1760278238806,-957.7455659,0.000148,2]
[390999937,1760278238819,-240.4544341,0.000148,2]
[390999939,1760278238829,-413.34,0.000148,2]
[390999941,1760278238839,-175.92,0.000148,2]
[390999943,1760278238850,-150.0,0.000148,2]
[390999945,1760278238859,-413.01,0.000148,2]
[390999947,1760278238868,-165.52,0.000148,2]
[390999949,1760278238878,-175.72,0.000148,2]
[390999951,1760278238887,-300.0,0.000148,2]
[390999953,1760278238897,-168.12,0.000148,2]
[390999955,1760278238906,-474.45,0.000148,2]
[390999957,1760278238915,-167.92,0.000148,2]
[390999959,1760278238924,-6450.75929661,0.00014809,2]
[390999961,1760278238934,-236.0,0.00014849,2]
[390999963,1760278238943,-3483.00018495,0.00014855,2]
[390999969,1760278238998,-431.60360428,0.00014855,2]
[390999987,1760278239153,-206.39621077,0.00014855,2]
[390999989,1760278239162,-6440.0,0.00014855,2]
[390999990,1760278239172,-622.0,0.00014855,2]
[390999992,1760278239181,-2223.38,0.00014885,2]
[390999994,1760278239191,-564.4992,0.00014894,2]
[390999997,1760278239200,-5000.0,0.000149,2]
[390999998,1760278239210,-150.0,0.000149,2]
[391000000,1760278239220,-158.1709445,0.000149,2]
[391000003,1760278239230,-1000.0,0.000149,2]
[391000005,1760278239240,-167.92643337,0.000149,2]
[391000006,1760278239250,-1000.0,0.000149,2]
[391000009,1760278239259,-205.82833149,0.000149,2]
[391000011,1760278239269,-159.70095261,0.000149,2]
[391000013,1760278239278,-1811.1721897,0.000149,2]
[391000014,1760278239287,-255.0,0.00014917,2]
[391000016,1760278239296,-200.0,0.00014939,2]
[391000018,1760278239306,-1139.98121994,0.00014939,2]
[391000020,1760278239316,-1000.0,0.00014939,2]
[391000021,1760278239325,-1064.10177476,0.00014939,2]
[391000022,1760278239335,-151.0,0.00014948,2]
[391000023,1760278239344,-151.0,0.00014948,2]
[391000024,1760278239353,-151.0,0.00014948,2]
[391000025,1760278239362,-151.0,0.00014948,2]
[391000026,1760278239371,-151.0,0.00014948,2]
[391000027,1760278239381,-322.6107,0.00014948,2]
[391000028,1760278239390,-266.41599032,0.00014948,2]
[391000029,1760278239399,-270.0112705,0.00014948,2]
[391000030,1760278239408,-151.0,0.00014948,2]
[391000031,1760278239417,-209.30490444,0.00014948,2]
[391000032,1760278239426,-259.03493323,0.00014948,2]
[391000033,1760278239435,-500.0,0.00014948,2]
[391000035,1760278239444,-500.0,0.00014948,2]
[391000037,1760278239453,-625.90879544,0.00014948,2]
[391000039,1760278239462,-1000.0,0.00014948,2]
[391000041,1760278239471,-1000.0,0.00014948,2]
[391000043,1760278239480,-1000.0,0.00014948,2]
[391000044,1760278239489,-1000.0,0.00014948,2]
[391000046,1760278239498,-500.0,0.00014948,2]
[391000048,1760278239507,-1000.0,0.00014948,2]
[391000050,1760278239517,-1000.0,0.00014948,2]
[391000052,1760278239526,-1000.0,0.00014948,2]
[391000054,1760278239535,-1000.0,0.00014948,2]
[391000057,1760278239545,-1000.0,0.00014948,2]
[391000060,1760278239555,-303.94148289,0.00014948,2]
[391000062,1760278239564,-151.0,0.00014954,2]
[391000064,1760278239574,-2048.0,0.00014957,2]
[391000066,1760278239582,-1259.0,0.00014957,2]
[391000068,1760278239592,-3391.0,0.00014957,2]
[391000070,1760278239601,-756.0,0.00014957,2]
[391000072,1760278239610,-604.0,0.00014957,2]
[391000074,1760278239619,-571.0,0.00014957,2]
[391000076,1760278239629,-1587.0,0.00014957,2]
[391000078,1760278239639,-1309.0,0.00014957,2]
[391000081,1760278239648,-816.0,0.00014957,2]
[391000083,1760278239658,-2847.84612663,0.00014958,2]
[391000084,1760278239667,-157.666186,0.00014959,2]
[391000086,1760278239676,-3959.07476,0.00014959,2]
[391000088,1760278239685,-4064.314632,0.00014959,2]
[391000090,1760278239695,-2252.621101,0.00014959,2]
[391000092,1760278239704,-157.666186,0.00014969,2]
[391000094,1760278239713,-3959.07476,0.00014969,2]
[391000096,1760278239723,-154.752852,0.00014969,2]
[391000098,1760278239732,-151.598197,0.00014969,2]
[391000100,1760278239741,-4064.314632,0.00014969,2]
[391000102,1760278239752,-151.598197,0.00014969,2]
[391000104,1760278239762,-2252.621101,0.00014969,2]
[391000106,1760278239776,-500.0,0.00014973,2]
[391000108,1760278239785,-500.0,0.00014973,2]
[391000110,1760278239795,-500.0,0.00014973,2]
[391000112,1760278239803,-500.0,0.00014973,2]
[391000114,1760278239813,-500.0,0.00014973,2]
[391000116,1760278239823,-947.87345155,0.00014974,2]
[391000118,1760278239833,-157.666186,0.00014979,2]
[391000120,1760278239844,-3959.07476,0.00014979,2]
[391000122,1760278239854,-154.752852,0.00014979,2]
[391000124,1760278239864,-151.598197,0.00014979,2]
[391000126,1760278239873,-151.598197,0.00014979,2]
[391000128,1760278239882,-4064.314632,0.00014979,2]
[391000130,1760278239891,-2252.621101,0.00014979,2]
[391000133,1760278239901,-239.24,0.0001499,2]
[391000135,1760278239911,-239.24,0.0001499,2]
[391000137,1760278239921,-157.666186,0.0001499,2]
[391000139,1760278239930,-3959.07476,0.0001499,2]
[391000141,1760278239939,-154.752852,0.0001499,2]
[391000142,1760278239948,-151.598197,0.0001499,2]
[391000144,1760278239957,-151.598197,0.0001499,2]
[391000146,1760278239967,-4064.314632,0.0001499,2]
[391000149,1760278239976,-2252.621101,0.0001499,2]
[391000151,1760278239986,-206.9549592,0.0001499,2]
[391000153,1760278239996,-206.9549592,0.0001499,2]
[391000155,1760278240005,-206.9549592,0.0001499,2]
[391000157,1760278240014,-327.3205382,0.00014992,2]
[391000159,1760278240023,-4048.73988188,0.00014994,2]
[391000161,1760278240032,-500.0,0.00014994,2]
[391000163,1760278240042,-500.0,0.00014994,2]
[391000164,1760278240050,-500.0,0.00014994,2]
[391000166,1760278240059,-500.0,0.00014994,2]
[391000168,1760278240069,-666.0,0.00014999,2]
[391000171,1760278240078,-1000.0,0.00014999,2]
[391000173,1760278240087,-1000.0,0.00014999,2]
[391000175,1760278240098,-450.0,0.00014999,5]
[391000177,1760278240107,-193.70224481,0.00014999,2]
[391000179,1760278240116,-538.0,0.00014999,2]
[391000181,1760278240126,-500.0,0.00015,2]
[391000183,1760278240135,-500.0,0.00015,2]
[391000185,1760278240144,-33454.18177249,0.00015,2]
[391000187,1760278240157,-3573.91499,0.00015,2]
[391000190,1760278240172,-1323.27193708,0.00015,2]
[391000194,1760278240206,-22642.2024086,0.00015,2]
[391000196,1760278240216,-754.56966197,0.00015,2]
[391000200,1760278240240,-1422.41859326,0.00015,2]
[391000303,1760278241932,-1182.0,0.00014855,2]
[391000304,1760278241941,-171.26,0.0001499,2]
[391000305,1760278241950,-8531.91335519,0.00015,2]
[391000306,1760278241962,-9099.71664481,0.00015,2]
[391000307,1760278241973,-18193.331117,0.00015,2]
[391000308,1760278242050,-1942.9070334,0.00015,2]
[391000310,1760278242915,-29726.08799227,0.00015,2]
[391000311,1760278242926,-7067.73446767,0.00015,2]
[391000312,1760278244977,-313.62008107,0.00014649,2]
[391000313,1760278245063,-456.7713958,0.00014649,2]
[391000314,1760278245074,-261227.70478137,0.00015,2]
[391000315,1760278245220,-905.0240924,0.00015,2]
[391000316,1760278245252,-1204.17022935,0.00015,2]
[391000317,1760278245263,-3396.0,0.00015,2]
[391000318,1760278245323,-7795.60850713,0.00015,2]
[391000328,1760278247950,-557.5,0.00014774,2]
[391000332,1760278289151,150.0,0.000273,120]
[391000335,1760278306400,100000.0,0.00027397,120]
[391000344,1760278510964,6644.05,0.00027397,120]
[391000350,1760278806776,500.0,0.00027397,120]
[391000351,1760278931506,1000.0,0.00027397,120]
[391000352,1760278957089,1000.0,0.00027397,120]
[391000354,1760279012944,6367.21,0.00027397,120]
[391000380,1760279112466,250.0,0.00013876,7]
[391000389,1760279270486,-2842.86894894,0.00015,7]
[391000390,1760279270505,-5157.13105106,0.00015,7]
[391000393,1760279303832,236.158266,7.888e-05,2]
[391000403,1760279402256,692.0,0.00027,120]
[391000404,1760279404648,6101.91,0.00027397,120]
[391000419,1760279434544,-255.51611901,0.000135,2]
[391000420,1760279434553,-220.93741909,0.00013507,2]
[391000421,1760279434562,-25.81698525,0.00013607,2]
[391000422,1760279434577,-284.21233593,0.00013607,2]
[391000423,1760279434586,-2000.0,0.00013607,2]
[391000424,1760279434595,-300.0,0.00013746,2]
[391000425,1760279434604,-300.0,0.00013746,2]
[391000426,1760279434613,-300.0,0.00013746,2]
[391000427,1760279434622,-1200.0,0.00013746,2]
[391000428,1760279434631,-2000.0,0.00013747,2]
[391000429,1760279434640,-195.0,0.00013747,2]
[391000430,1760279434648,-161.0,0.00013812,2]
[391000431,1760279434660,-200.0,0.00013869,2]
[391000432,1760279434669,-1000.0,0.00013984,2]
[391000433,1760279434678,-554.82,0.00014043,2]
[391000434,1760279434687,-281.64173256,0.00014302,2]
[391000435,1760279434697,-162.21,0.000144,2]
[391000436,1760279434706,-321.55438952,0.00014517,2]
[391000437,1760279434715,-413.0,0.00014529,2]
[391000438,1760279434725,-199.0,0.00014566,2]
[391000439,1760279434734,-199.0,0.00014567,2]
[391000440,1760279434744,-1000.0,0.000147,2]
[391000441,1760279434753,-1000.0,0.000147,2]
[391000442,1760279434762,-199.0,0.00014704,2]
[391000443,1760279434772,-413.0,0.00014777,2]
[391000444,1760279434781,-668.65185757,0.0001479,2]
[391000445,1760279434791,-151.0,0.0001479,2]
[391000446,1760279434800,-413.0,0.00014795,2]
[391000447,1760279434809,-150.0,0.00014796,2]
[391000448,1760279434818,-2293.86,0.00014798,2]
[391000449,1760279434828,-62474.0,0.000148,2]
[391000450,1760279434838,-1721.99993326,0.000148,2]
[391000451,1760279434847,-1000.0,0.000148,2]
[391000452,1760279434856,-2500.0,0.000148,2]
[391000453,1760279434866,-1721.99993319,0.00014811,2]
[391000454,1760279434875,-1721.99993319,0.00014822,2]
[391000455,1760279434885,-335.45,0.00014833,2]
[391000456,1760279434894,-1721.99993319,0.00014833,2]
[391000457,1760279434903,-1721.99993319,0.00014844,2]
[391000458,1760279434915,-250.0,0.0001485,2]
[391000459,1760279434924,-2000.0,0.0001485,2]
[391000460,1760279434933,-195.0,0.0001485,2]
[391000461,1760279434944,-300.0,0.0001485,2]
[391000462,1760279434953,-300.0,0.0001485,2]
[391000463,1760279434962,-182.54951389,0.0001485,2]
[391000464,1760279434972,-195.0,0.0001485,2]
[391000465,1760279434982,-300.0,0.0001485,2]
[391000466,1760279434991,-300.0,0.0001485,2]
[391000467,1760279435001,-300.0,0.0001485,2]
[391000468,1760279435010,-1721.99993319,0.00014856,2]
[391000469,1760279435020,-1721.99993319,0.00014867,2]
[391000470,1760279435031,-1721.99993319,0.00014878,2]
[391000471,1760279435041,-161.56966074,0.0001488,2]
[391000472,1760279435050,-612.01068196,0.00014882,2]
[391000473,1760279435060,-205.82833148,0.00014882,2]
[391000474,1760279435069,-585.54584259,0.00014882,2]
[391000475,1760279435081,-776.97714612,0.00014882,2]
[391000476,1760279435099,-161.56966068,0.00014883,2]
[391000477,1760279435109,-161.56966068,0.00014885,2]
[391000478,1760279435118,-168.0,0.00014887,2]
[391000479,1760279435127,-161.56966068,0.00014888,2]
[391000480,1760279435136,-1721.99993319,0.00014889,2]
[391000481,1760279435146,-281.4888577,0.00014889,2]
[391000482,1760279435155,-203.34762041,0.00014889,2]
[391000483,1760279435166,-695.39793187,0.00014889,2]
[391000484,1760279435175,-201.65049896,0.00014889,2]
[391000485,1760279435184,-151.0,0.00014889,2]
[391000486,1760279435194,-151.0,0.00014889,2]
[391000487,1760279435203,-151.0,0.00014889,2]
[391000488,1760279435214,-151.0,0.00014889,2]
[391000489,1760279435224,-151.0,0.00014889,2]
[391000490,1760279435233,-179.01056085,0.00014889,2]
[391000491,1760279435243,-151.0,0.00014889,2]
[391000492,1760279435252,-152.1408671,0.00014889,2]
[391000493,1760279435264,-1000.0,0.00014889,2]
[391000494,1760279435274,-500.0,0.00014889,2]
[391000495,1760279435283,-5.77039526,0.0001489,2]
[391000496,1760279435295,-155.79926542,0.0001489,2]
[391000497,1760279435304,-161.56966068,0.00014893,2]
[391000498,1760279435314,-161.56966068,0.00014895,2]
[391000499,1760279435324,-161.56966068,0.00014898,2]
[391000500,1760279435334,-199.0,0.00014899,2]
[391000501,1760279435343,-5000.0,0.000149,2]
[391000502,1760279435353,-150.0,0.000149,2]
[391000503,1760279435362,-45728.56598293,0.000149,2]
[391000504,1760279435503,-9826.43401707,0.000149,2]
[391000505,1760279435512,-1721.99993319,0.000149,2]
[391000506,1760279435522,-161.56966068,0.000149,2]
[391000507,1760279435532,-1873.0,0.000149,2]
[391000508,1760279435542,-413.0,0.00014913,2]
[391000509,1760279435552,-1000.0,0.00014958,2]
[391000510,1760279435562,-604.0,0.00014959,2]
[391000511,1760279435571,-1511.732,0.00014959,2]
[391000512,1760279435582,-1309.0,0.00014959,2]
[391000513,1760279435592,-571.0,0.00014959,2]
[391000514,1760279435601,-816.0,0.00014959,2]
[391000515,1760279435611,-901.0,0.00014959,2]
[391000516,1760279435620,-923.97926463,0.00014959,2]
[391000517,1760279435750,-345.85044249,0.00014959,2]
[391000518,1760279435764,-701.61386136,0.00014959,2]
[391000519,1760279435775,-573.55643152,0.00014959,2]
[391000520,1760279435784,-1182.0,0.00014959,2]
[391000521,1760279435793,-749.0,0.00014959,2]
[391000522,1760279435803,-3405.0,0.00014959,2]
[391000523,1760279435813,-559.08808697,0.00014959,2]
[391000543,1760279441980,-640.93868497,0.00014959,2]
[391000544,1760279442031,-65.97322806,0.00014959,2]
[391000545,1760279442041,-633.22677194,0.00014959,2]
[391000546,1760279442053,-1414.77322806,0.00014959,2]
[391000547,1760279442064,-173.053,0.00014966,2]
[391000548,1760279442074,-2787.45,0.00014966,2]
[391000549,1760279442086,-335.45,0.0001497,2]
[391000550,1760279442096,-500.0,0.00014973,2]
[391000551,1760279442105,-500.0,0.00014973,2]
[391000552,1760279442115,-500.0,0.00014973,2]
[391000553,1760279442126,-500.0,0.00014973,2]
[391000554,1760279442136,-500.0,0.00014979,2]
[391000555,1760279442146,-500.0,0.00014979,2]
[391000556,1760279442157,-230.06310265,0.00014979,2]
[391000557,1760279442173,-289.05499604,0.00014979,2]
[391000558,1760279442183,-542.38850064,0.00014979,2]
[391000559,1760279442193,-325.95546407,0.00014979,2]
[391000560,1760279442206,-69247.30171257,0.0001498,2]
[391000565,1760279448989,-49428.94702122,0.0001498,2]
[391000567,1760279451708,-217.29809097,0.00014882,2]
[391000568,1760279451717,-1081.25617206,0.0001498,2]
[391000569,1760279451866,-1768.06131891,0.0001498,2]
[391000570,1760279536557,154.0,0.00027397,120]
[391000573,1760279646351,5847.66,0.00027397,120]
[391000574,1760279717862,196.64,6.956e-05,2]
[391000578,1760279897155,559.14,0.00027397,120]
[391000579,1760279899064,5604.01,0.00027397,120]
[391000587,1760280199461,500.0,0.00027397,120]
[391000595,1760280408359,5370.51,0.00027397,120]
[391000597,1760280479402,200.22318647,0.00027,120]
[391000664,1760280634248,-457.09,0.00013699,2]
[391000665,1760280634259,-5860.56,0.0001388,2]
[391000666,1760280634268,-200.0,0.00013901,2]
[391000667,1760280634278,-250.0,0.00013908,2]
[391000668,1760280634287,-196.64,0.00013912,2]
[391000669,1760280634296,-274.69,0.00013964,2]
[391000670,1760280634306,-1200.0,0.00014058,2]
[391000671,1760280634315,-1600.0,0.00014059,2]
[391000672,1760280634325,-300.0,0.00014204,2]
[391000673,1760280634334,-300.0,0.00014204,2]
[391000674,1760280634343,-467.58874009,0.00014205,2]
[391000675,1760280634353,-267.46074303,0.00014205,2]
[391000676,1760280634362,-151.0,0.00014205,2]
[391000677,1760280634371,-30000.0,0.00014213,2]
[391000678,1760280634380,-259.0,0.00014461,2]
[391000679,1760280634391,-168.0,0.0001448,2]
[391000680,1760280634403,-171.24740541,0.00014504,2]
[391000681,1760280634412,-259.0,0.00014549,2]
[391000682,1760280634421,-5010.81127214,0.00014678,2]
[391000683,1760280634431,-151.0,0.00014753,2]
[391000684,1760280634440,-150.0,0.00014787,2]
[391000685,1760280634453,-625.3367158,0.00014787,2]
[391000686,1760280634462,-625.3367158,0.00014787,2]
[391000687,1760280634472,-625.3367158,0.00014787,2]
[391000688,1760280634482,-625.3367158,0.00014787,2]
[391000689,1760280634491,-625.3367158,0.00014787,2]
[391000690,1760280634501,-625.3367158,0.00014787,2]
[391000691,1760280634510,-625.3367158,0.00014787,2]
[391000692,1760280634519,-625.3367158,0.00014787,2]
[391000693,1760280634529,-625.3367158,0.00014787,2]
[391000694,1760280634538,-625.3367158,0.00014787,2]
[391000695,1760280634547,-625.3367158,0.00014787,2]
[391000696,1760280634556,-625.3367158,0.00014787,2]
[391000697,1760280634566,-625.3367158,0.00014787,2]
[391000698,1760280634577,-551.83234738,0.00014787,2]
[391000699,1760280634586,-625.3367158,0.00014787,2]